bitfinex/quotes_ETHUSD_20260114
["timestamp","ask_amount","ask_price","bid_price","bid_amount"]
[1768378998173,8.03429305,3335.3,3334.8,0.001]
[1768378998382,0.28061407,3335.2,3334.8,0.34218487]
[1768378998667,0.555,3335.2,3334.8,0.34218487]
[1768378999065,0.555,3335.2,3334.8,7.71020161]
[1768379000354,1e-08,3335.3,3334.8,3.34086278]
[1768379000678,1e-08,3335.3,3334.9,8.77999049]
[1768379001271,0.55500001,3335.3,3334.9,8.77999049]
[1768379003780,1.11000001,3335.3,3334.9,8.77999049]
[1768379004285,1.11000001,3335.3,3334.9,1.41197375]
[1768379005171,1.11000001,3335.3,3335.1,0.001]
[1768379006382,1.66500001,3335.3,3335.1,0.001]
[1768379008755,2.22000001,3335.3,3335.1,0.001]
[1768379009079,7.61130167,3335.2,3334.8,0.001]
[1768379009244,8.02330167,3335.1,3334.8,0.001]
[1768379011084,11.02173199,3335.1,3334.8,0.001]
[1768379011281,11.57673199,3335.1,3334.8,0.001]
[1768379011889,11.57673199,3335.1,3334.3,7.36901674]
[1768379012581,7.89196964,3335.0,3334.3,0.001]
[1768379012776,0.28066797,3334.9,3334.3,0.001]
[1768379012988,0.28066797,3334.8,3334.3,0.001]
[1768379013174,0.28066797,3334.7,3334.3,0.001]
[1768379013380,7.61130167,3335.0,3334.3,0.001]
[1768379013701,0.28061975,3334.9,3334.3,0.001]
[1768379014000,0.28061975,3334.8,3334.3,0.001]
[1768379014170,11.16481164,3335.0,3334.3,0.001]
[1768379014514,0.28057822,3334.9,3334.3,7.36901674]
[1768379014659,0.28057822,3334.8,3334.3,8.74698271]
[1768379014858,0.555,3335.0,3334.3,8.74698271]
[1768379015052,0.28057619,3334.9,3334.3,8.74698271]
[1768379015266,0.28057619,3334.8,3334.3,8.74698271]
[1768379015467,0.555,3335.0,3334.3,8.74698271]
[1768379015689,0.28054622,3334.9,3334.4,7.4283222]
[1768379015892,0.28054622,3334.8,3334.4,7.4283222]
[1768379016057,0.555,3335.0,3334.4,7.4283222]
[1768379016259,0.28054628,3334.9,3334.4,7.4283222]
[1768379016458,0.28054628,3334.8,3334.4,7.4283222]
[1768379016659,1.11,3335.0,3334.4,7.4283222]
[1768379016956,0.28051914,3334.9,3334.6,0.001]
[1768379017157,0.28051914,3334.8,3334.6,0.001]
[1768379017358,1.11,3335.0,3334.6,0.001]
[1768379017690,0.28049706,3334.9,3334.6,0.001]
[1768379017884,0.28049706,3334.8,3334.6,0.001]
[1768379018183,1.11,3335.0,3334.6,0.43889989]
[1768379018383,1e-08,3335.0,3334.6,7.4293222]
[1768379018583,0.55500001,3335.0,3334.6,7.4293222]
[1768379018789,8.01967269,3335.1,3334.6,0.001]
[1768379019263,0.555,3335.1,3334.7,7.4283222]
[1768379020080,0.555,3335.1,3334.6,0.001]
[1768379020277,8.01967269,3335.1,3334.6,0.001]
[1768379020689,8.01967269,3335.1,3334.6,1.08574441]
[1768379021789,8.57467269,3335.1,3334.6,1.08574441]
[1768379022885,1.11,3335.1,3334.6,1.08574441]
[1768379023790,1.11,3335.1,3334.6,8.51406661]
[1768379024195,1.665,3335.1,3334.6,8.51406661]
[1768379025068,9.12967269,3335.1,3334.6,1.08574441]
[1768379026101,1.665,3335.1,3334.6,1.08574441]
[1768379026804,2.22,3335.1,3334.6,1.08574441]
[1768379027006,2.22,3335.1,3334.7,0.50930187]
[1768379027208,9.68467269,3335.1,3334.6,1.08574441]
[1768379027386,9.68467269,3335.1,3334.6,4.08456129]
[1768379027586,2e-08,3335.1,3334.6,4.08456129]
[1768379027804,2.22000001,3335.3,3334.7,7.4283222]
[1768379028100,2.22000144,3335.6,3335.1,7.4283222]
[1768379029301,2.77500144,3335.6,3335.1,7.4283222]
[1768379029982,0.28043188,3335.5,3335.1,7.4283222]
[1768379030192,2.77500144,3335.6,3335.1,7.4283222]
[1768379030193,0.28043188,3335.4,3335.1,7.4283222]
[1768379030387,2.77500144,3335.6,3335.0,7.4283222]
[1768379030782,2.77500144,3335.6,3335.0,2.99844893]
[1768379031093,10.23967413,3335.6,3335.0,2.99844893]
[1768379031490,10.23967413,3335.6,3334.9,9.46701952]
[1768379031695,10.79467413,3335.6,3334.9,11.56500365]
[1768379032085,10.79467413,3335.6,3335.0,2.99848145]
[1768379032273,10.79467413,3335.6,3334.9,11.56498179]
[1768379034106,3.33000144,3335.6,3334.9,11.56498179]
[1768379034410,3.88500144,3335.6,3335.0,7.4283222]
[1768379035709,3.88500144,3335.6,3335.0,10.42676492]
[1768379035906,3.88500144,3335.6,3335.1,7.4283222]
[1768379036821,4.44000144,3335.6,3335.1,7.4283222]
[1768379039204,4.99500144,3335.6,3335.1,7.4283222]
[1768379041023,4.99500144,3335.6,3335.4,0.001]
[1768379041700,5.55000144,3335.6,3335.4,0.001]
[1768379042321,0.28030822,3335.5,3335.4,0.001]
[1768379042522,0.28030703,3335.5,3335.4,0.001]
[1768379044419,2.21900144,3335.4,3335.1,7.4283222]
[1768379044718,8.01967269,3335.5,3335.0,2.99849845]
[1768379046888,0.555,3335.5,3335.0,10.45881196]
[1768379047088,0.555,3335.5,3335.1,7.46031351]
[1768379047288,10.69137653,3335.6,3335.0,2.99849845]
[1768379047531,10.69137653,3335.6,3335.0,4.55709276]
[1768379047715,3.33,3335.6,3335.1,7.46031351]
[1768379049322,3.885,3335.6,3335.1,7.46031351]
[1768379050720,3.885,3335.6,3334.9,10.45890417]
[1768379050924,7.36137653,3335.5,3334.9,2.99859066]
[1768379051118,7.36137653,3335.5,3335.0,1.24656871]
[1768379051299,3.885,3335.6,3335.0,8.70688222]
[1768379051701,4.44,3335.6,3335.0,8.70688222]
[1768379052731,4.44,3335.6,3335.3,0.001]
[1768379053593,8.32837653,3335.8,3335.3,0.001]
[1768379053787,8.32837653,3335.8,3335.3,0.94779217]
[1768379054215,1.522,3335.8,3335.3,0.94779217]
[1768379054417,7.36137653,3335.7,3335.3,0.94779217]
[1768379054800,1.522,3335.8,3335.3,0.94779217]
[1768379057002,2.077,3335.8,3335.3,0.94779217]
[1768379057203,2.077,3335.8,3335.3,0.001]
[1768379057588,9.43837653,3335.8,3335.3,0.001]
[1768379057792,2.077,3335.8,3335.3,0.001]
[1768379059422,0.28083042,3335.7,3335.3,0.001]
[1768379059617,0.28083042,3335.6,3335.3,0.001]
[1768379059948,0.28083042,3335.5,3335.3,0.001]
[1768379060123,2.632,3335.8,3335.3,0.001]
[1768379060521,2.632,3335.8,3335.5,0.05317589]
[1768379060724,7.36518164,3335.7,3335.3,0.001]
[1768379061110,2.632,3335.8,3335.3,0.001]
[1768379061929,3.187,3335.8,3335.3,0.001]
[1768379062924,3.187,3335.8,3335.3,2.99923104]
[1768379063125,3.187,3335.8,3335.3,0.001]
[1768379063506,3.187,3335.8,3335.3,7.40442639]
[1768379063721,3.187,3335.8,3335.4,1.0402722]
[1768379064546,3.742,3335.8,3335.3,7.40442639]
[1768379066237,3.742,3335.8,3335.3,0.001]
[1768379066533,6.73978407,3335.8,3335.3,0.001]
[1768379066938,7.29478407,3335.8,3335.3,0.001]
[1768379067432,7.36518164,3335.7,3335.3,0.001]
[1768379067610,7.36518164,3335.6,3335.3,0.001]
[1768379068417,14.65996571,3335.8,3335.3,0.001]
[1768379068624,7.36518164,3335.7,3335.3,0.001]
[1768379069530,7.92018164,3335.7,3335.3,0.001]
[1768379071993,8.47518164,3335.7,3335.3,0.001]
[1768379072276,0.280739,3335.6,3335.3,0.001]
[1768379072446,0.280739,3335.5,3335.3,0.001]
[1768379072649,8.47518164,3335.7,3335.3,0.001]
[1768379072950,1.11,3335.7,3335.5,0.05317588]
[1768379074878,1.665,3335.7,3335.5,0.05317588]
[1768379077674,2.22,3335.7,3335.5,0.05317588]
[1768379078781,9.61353717,3335.7,3335.5,0.05317588]
[1768379078978,7.39353717,3335.6,3335.5,0.05317588]
[1768379079171,2.22,3335.7,3335.5,0.05317588]
[1768379079883,7.39353717,3335.6,3335.5,0.05317588]
[1768379080086,2.775,3335.7,3335.5,0.05317588]
[1768379082184,9.06053717,3336.4,3335.6,7.94101778]
[1768379082384,1e-08,3335.7,3335.5,0.05317588]
[1768379083268,0.412,3336.3,3335.5,0.05317588]
[1768379083269,7.80553717,3336.3,3335.5,0.05317588]
[1768379084087,7.39353717,3336.1,3335.5,0.05317588]
[1768379084285,7.39353717,3335.9,3335.5,0.05317588]
[1768379084776,0.28074174,3335.8,3335.5,0.05317588]
[1768379084983,0.28074174,3335.7,3335.5,0.05317588]
[1768379085174,0.555,3335.9,3335.5,0.05317588]
[1768379085175,0.28074174,3335.6,3335.5,0.05317588]
[1768379085488,0.555,3335.9,3335.5,0.05317588]
[1768379086791,10.94627543,3335.9,3335.5,0.05317588]
[1768379087092,7.39353717,3335.8,3335.5,0.05317588]
[1768379087259,7.39353717,3335.8,3334.9,7.94101778]
[1768379087260,7.39353717,3335.7,3334.9,7.94101778]
[1768379087686,7.39353717,3335.7,3334.8,0.412]
[1768379088186,7.39353717,3335.7,3334.8,3.41067755]
[1768379088793,7.39353717,3335.7,3334.9,2.99858683]
[1768379089275,10.39147023,3335.7,3334.9,2.99858683]
[1768379089583,7.39353717,3335.6,3334.9,2.99858683]
[1768379089764,7.39353717,3335.6,3334.8,3.41066534]
[1768379089965,7.94853717,3335.6,3334.8,3.41066534]
[1768379090505,7.94853717,3335.6,3334.8,11.35168312]
[1768379091789,7.80553717,3335.5,3334.7,2.99876855]
[1768379091989,7.80553717,3335.5,3334.6,7.94201778]
[1768379092203,7.80553717,3335.5,3334.6,0.001]
[1768379092370,8.36053717,3335.5,3334.6,0.001]
[1768379094061,7.39353717,3335.3,3334.6,0.001]
[1768379094378,7.39353717,3335.1,3334.6,0.001]
[1768379094883,8.36053717,3335.1,3334.6,0.001]
[1768379095598,0.967,3335.1,3334.6,0.001]
[1768379096395,3.96542589,3335.1,3334.6,0.001]
[1768379097300,0.28030064,3335.0,3334.6,0.001]
[1768379097600,4.52042589,3335.1,3334.6,0.001]
[1768379097809,0.28024649,3335.0,3334.6,0.001]
[1768379098101,4.52042589,3335.1,3334.6,0.001]
[1768379098302,0.28024643,3335.0,3334.9,0.001]
[1768379100102,0.83524643,3335.0,3334.9,0.001]
[1768379102814,1.39024643,3335.0,3334.9,0.001]
[1768379105210,1.94524643,3335.0,3334.9,0.001]
[1768379107116,1.94502768,3335.0,3334.9,0.001]
[1768379107480,2.50002768,3335.0,3334.9,0.001]
[1768379107892,2.99717174,3335.4,3334.9,7.70054858]
[1768379109079,2.99717174,3335.4,3335.0,7.69954858]
[1768379109507,2.99717174,3335.4,3335.0,9.06933417]
[1768379109880,3.55217174,3335.4,3335.0,9.06933417]
[1768379111099,3.55217174,3335.4,3335.0,1.36978559]
[1768379111407,3.55217174,3335.4,3334.9,0.001]
[1768379111408,7.8692853,3335.3,3334.9,0.001]
[1768379111579,7.8692853,3335.3,3335.2,0.001]
[1768379112403,8.4242853,3335.3,3335.2,0.001]
[1768379114116,0.555,3335.3,3335.2,0.001]
[1768379114811,1.06,3335.3,3335.2,0.001]
[1768379115018,1.06,3335.3,3334.9,7.70054858]
[1768379115309,1.06,3335.3,3335.0,9.06934129]
[1768379117385,1.615,3335.3,3335.0,9.06934129]
[1768379118112,1.615,3335.3,3335.0,7.69954858]
[1768379119417,1.615,3335.3,3334.9,0.001]
[1768379119907,2.17,3335.3,3334.9,0.001]
[1768379120496,0.28044795,3335.2,3334.9,0.001]
[1768379120699,2.17,3335.3,3334.9,0.001]
[1768379121496,0.28047546,3335.2,3334.9,0.001]
[1768379121816,2.17,3335.3,3334.9,0.001]
[1768379122119,0.28047554,3335.2,3334.9,0.001]
[1768379122415,2.17,3335.3,3334.9,0.001]
[1768379122416,2.725,3335.3,3334.9,0.001]
[1768379122597,0.28047414,3335.2,3334.9,0.001]
[1768379122797,2.725,3335.3,3334.9,0.001]
[1768379122998,0.28047407,3335.2,3334.9,0.001]
[1768379123216,2.725,3335.3,3334.9,0.001]
[1768379123407,0.28047506,3335.2,3334.9,0.001]
[1768379123608,2.725,3335.3,3334.9,0.001]
[1768379123790,0.2804689,3335.2,3334.9,0.001]
[1768379123991,2.725,3335.3,3334.9,0.001]
[1768379124224,0.28046884,3335.2,3334.9,0.001]
[1768379124423,2.725,3335.3,3334.9,0.001]
[1768379124730,0.2804727,3335.2,3334.9,0.001]
[1768379124899,3.28,3335.3,3334.9,0.001]
[1768379125086,0.28047264,3335.2,3334.9,0.001]
[1768379125417,7.79700138,3335.1,3334.9,0.001]
[1768379126214,8.35200138,3335.5,3334.9,6.47030287]
[1768379126418,8.35200138,3335.5,3335.0,1.43534332]
[1768379126905,8.35200138,3335.5,3334.9,6.47030287]
[1768379127299,8.90700138,3335.5,3334.9,6.47030287]
[1768379127701,8.90700138,3335.5,3335.0,2.99850074]
[1768379128127,1.11,3335.5,3334.9,2.99954986]
[1768379128533,1.522,3335.5,3334.9,2.99954986]
[1768379130010,2.077,3335.5,3334.9,2.99954986]
[1768379132624,2.632,3335.5,3334.9,2.99954986]
[1768379133814,7.79700138,3335.4,3334.9,2.99954986]
[1768379134733,2.632,3335.5,3334.9,0.001]
[1768379134902,0.555,3335.4,3334.9,0.001]
[1768379135231,0.555,3335.4,3335.2,0.001]
[1768379137507,1.11,3335.4,3335.2,0.001]
[1768379140051,1.665,3335.4,3335.2,0.001]
[1768379143440,2.22,3335.4,3335.2,0.001]
[1768379144009,0.28064885,3335.3,3335.2,0.001]
[1768379145737,0.83564885,3335.3,3335.2,0.001]
[1768379148541,1.39064885,3335.3,3335.2,0.001]
[1768379149258,1.39064885,3335.3,3334.9,0.001]
[1768379149458,0.28064885,3335.2,3334.9,0.001]
[1768379149762,0.412,3335.1,3334.6,0.001]
[1768379149925,0.28064885,3335.0,3334.6,0.001]
[1768379151036,0.83564885,3335.0,3334.6,0.001]
[1768379151359,0.28064885,3334.9,3334.6,0.001]
[1768379151533,0.555,3335.0,3334.6,0.001]
[1768379151866,0.28055476,3334.9,3334.6,0.001]
[1768379152164,0.28055476,3334.8,3334.6,0.001]
[1768379152345,0.555,3335.0,3334.6,0.001]
[1768379152556,0.28049902,3334.9,3334.6,0.001]
[1768379152726,0.555,3335.0,3334.6,0.001]
[1768379152926,0.28049909,3334.9,3334.6,0.001]
[1768379153137,3.55352284,3335.0,3334.6,0.001]
[1768379153335,0.28045165,3334.9,3334.6,0.001]
[1768379153539,1.11,3335.0,3334.6,0.001]
[1768379153860,0.28045159,3334.9,3334.6,0.001]
[1768379154052,1.11,3335.0,3334.6,0.001]
[1768379154255,0.28045159,3334.9,3334.6,0.001]
[1768379154459,4.10851153,3335.0,3334.6,0.001]
[1768379154657,0.28040956,3334.9,3334.6,0.001]
[1768379154855,8.00985148,3334.7,3334.3,0.001]
[1768379155237,7.10702306,3335.0,3334.3,0.001]
[1768379155442,8.29020834,3334.9,3334.3,0.001]
[1768379155673,0.28035686,3334.8,3334.3,0.001]
[1768379155981,8.29020834,3334.8,3334.3,0.001]
[1768379156142,8.42185148,3334.7,3334.3,0.001]
[1768379156589,14.4195681,3334.7,3334.3,0.001]
[1768379156869,8.29015916,3334.6,3334.3,0.001]
[1768379157070,0.28030768,3334.5,3334.3,0.001]
[1768379158142,3.41085831,3334.7,3334.3,0.001]
[1768379158341,0.555,3334.5,3334.3,0.001]
[1768379159459,3.55396143,3334.5,3334.3,0.001]
[1768379160278,3.55396143,3334.5,3333.9,7.83125709]
[1768379160578,6.55292286,3334.5,3333.9,7.83125709]
[1768379160767,7.10792286,3334.5,3333.9,7.83125709]
[1768379161356,7.10792286,3334.5,3333.7,7.83225709]
[1768379161543,15.11777434,3334.5,3333.7,7.83225709]
[1768379161943,8.00985148,3334.3,3333.7,0.001]
[1768379162142,0.69202688,3334.2,3333.7,0.001]
[1768379162387,7.10792286,3334.5,3333.7,7.83225709]
[1768379162688,2.99913025,3334.3,3333.7,7.83225709]
[1768379163185,3.55413025,3334.3,3333.7,7.83225709]
[1768379165578,4.10913025,3334.3,3333.7,7.83225709]
[1768379168285,4.10913025,3334.3,3333.7,7.83225709]
[1768379168786,4.66413025,3334.3,3333.7,7.83225709]
[1768379168987,1.665,3334.3,3333.7,7.83225709]
[1768379169353,4.66415606,3334.3,3333.7,7.83225709]
[1768379170993,1.665,3334.3,3333.8,7.61705821]
[1768379171187,2.22,3334.3,3333.8,7.61705821]
[1768379171357,2.22,3334.3,3334.0,0.001]
[1768379173688,2.775,3334.3,3334.0,0.001]
[1768379173990,5.7741538,3334.3,3334.0,0.001]
[1768379174169,2.775,3334.3,3334.0,0.001]
[1768379174360,5.77414517,3334.3,3334.0,0.001]
[1768379175992,5.77416176,3334.3,3334.0,0.001]
[1768379176196,6.32916176,3334.3,3334.0,0.001]
[1768379176591,3.33,3334.3,3334.0,0.001]
[1768379177299,6.32914494,3334.3,3334.0,0.001]
[1768379177797,3.33,3334.3,3334.0,0.001]
[1768379178193,6.32913885,3334.3,3334.0,0.001]
[1768379178594,6.88413885,3334.3,3334.0,0.001]
[1768379179277,0.2801755,3334.2,3334.0,0.001]
[1768379179584,6.88413885,3334.3,3334.0,0.001]
[1768379179900,0.28018392,3334.2,3334.0,0.001]
[1768379180078,6.88413885,3334.3,3334.0,0.001]
[1768379180283,0.28018398,3334.2,3334.0,0.001]
[1768379180603,6.88413885,3334.3,3334.0,0.001]
[1768379180803,0.28022769,3334.2,3334.0,0.001]
[1768379180969,7.43913885,3334.3,3334.0,0.001]
[1768379181292,0.28022769,3334.2,3334.0,0.001]
[1768379181602,7.43913885,3334.3,3334.0,0.001]
[1768379181896,0.28028058,3334.2,3334.0,0.001]
[1768379182198,7.43913885,3334.3,3334.0,0.001]
[1768379182397,0.28033547,3334.2,3334.0,0.001]
[1768379182597,0.28033547,3334.1,3334.0,0.001]
[1768379182796,0.28033547,3334.2,3334.0,0.001]
[1768379183497,0.83533547,3334.2,3334.0,0.001]
[1768379183701,0.28033547,3334.1,3334.0,0.001]
[1768379185998,4.10897247,3334.5,3334.0,7.26025562]
[1768379185999,1.11,3334.5,3334.0,7.26025562]
[1768379186309,1.11,3334.5,3334.1,8.28523773]
[1768379186509,1.11,3334.5,3334.1,11.28451918]
[1768379186727,1.11,3334.5,3334.2,7.25925562]
[1768379186891,1.11,3334.5,3334.1,8.28523773]
[1768379187209,0.412,3334.7,3334.2,8.68776169]
[1768379187387,0.412,3334.7,3334.2,7.25925562]
[1768379187587,3.41070094,3334.8,3334.2,7.25925562]
[1768379188383,3.96570094,3334.8,3334.2,7.25925562]
[1768379191120,4.52070094,3334.8,3334.2,7.25925562]
[1768379192626,1.522,3334.8,3334.3,7.25925562]
[1768379192930,1.522,3334.8,3334.3,8.58513832]
[1768379193622,2.077,3334.8,3334.3,8.58513832]
[1768379194432,1.615,3334.8,3334.6,7.25925562]
[1768379194632,1.11,3335.0,3334.3,4.32501224]
[1768379194633,1.11,3335.0,3334.7,7.25925562]
[1768379194990,1.11,3335.0,3334.7,7.98518118]
[1768379195998,0.002,3334.8,3334.7,7.98518118]
[1768379196323,1.665,3335.0,3334.7,8.52714692]
[1768379197620,1.665,3335.0,3334.3,1.3268827]
[1768379197803,1.665,3335.0,3334.4,7.80122136]
[1768379198528,2.22,3335.0,3334.4,7.80122136]
[1768379198737,2.22,3335.0,3334.4,10.80025803]
[1768379199039,2.22,3335.0,3334.5,7.80122136]
[1768379201841,2.775,3335.0,3334.5,7.80122136]
[1768379202512,5.77352843,3335.0,3334.5,7.80122136]
[1768379203838,2.775,3335.0,3334.5,7.80122136]
[1768379204019,5.77351507,3335.0,3334.5,7.80122136]
[1768379204208,3.33,3335.0,3334.5,7.80122136]
[1768379206643,3.885,3335.0,3334.5,7.80122136]
[1768379207940,0.002,3334.7,3334.4,2.99903722]
[1768379208109,7.86850895,3334.9,3334.4,3.59896276]
[1768379208310,7.86850895,3334.9,3334.4,2.99903722]
[1768379208607,3.887,3335.0,3334.4,2.99903722]
[1768379208812,3.887,3335.0,3334.3,10.80135161]
[1768379209040,4.442,3335.0,3334.3,10.70135161]
[1768379210548,4.442,3335.0,3334.3,12.11270858]
[1768379211346,4.997,3335.0,3334.3,12.11270858]
[1768379213715,5.552,3335.0,3334.3,12.11270858]
[1768379215347,0.28036079,3334.9,3334.3,12.11270858]
[1768379215648,5.552,3335.0,3334.3,12.11270858]
[1768379215950,0.28036079,3334.9,3334.3,12.11270858]
[1768379216150,6.107,3335.0,3334.3,12.11270858]
[1768379216449,0.28036076,3334.9,3334.3,12.11270858]
[1768379216627,6.107,3335.0,3334.3,12.11270858]
[1768379216828,0.28040055,3334.9,3334.3,12.11270858]
[1768379217136,6.107,3335.0,3334.3,12.11270858]
[1768379217325,0.28040054,3334.9,3334.3,12.11270858]
[1768379217667,6.107,3335.0,3334.3,12.11270858]
[1768379217844,0.28043226,3334.9,3334.3,12.11270858]
[1768379218015,6.107,3335.0,3334.3,12.11270858]
[1768379218319,0.28043219,3334.9,3334.3,12.11270858]
[1768379218522,6.662,3335.0,3334.3,12.11270858]
[1768379218723,0.28046767,3334.9,3334.3,12.11270858]
[1768379218924,6.662,3335.0,3334.4,7.80122136]
[1768379219124,0.28046749,3334.9,3334.4,7.80122136]
[1768379219332,6.662,3335.0,3334.4,7.80122136]
[1768379219536,0.28050979,3334.9,3334.4,7.80122136]
[1768379219824,0.002,3334.7,3334.5,2.99895036]
[1768379220024,7.86850895,3334.9,3334.5,2.99895036]
[1768379220236,7.86850895,3334.9,3334.4,2.99900772]
[1768379220436,6.662,3335.0,3334.4,2.99900772]
[1768379220637,0.28055402,3334.9,3334.4,2.99900772]
[1768379220924,6.662,3335.0,3334.4,2.99900772]
[1768379221127,0.28055408,3334.9,3334.4,2.99900772]
[1768379221337,0.28061872,3334.8,3334.4,2.99900772]
[1768379221541,7.217,3335.0,3334.4,2.99900772]
[1768379221755,0.28061866,3334.9,3334.4,2.99900772]
[1768379221957,0.28061866,3334.8,3334.4,2.99900772]
[1768379222128,7.217,3335.0,3334.4,2.99900772]
[1768379222328,0.28061878,3334.9,3334.4,2.99900772]
[1768379222647,0.28061878,3334.8,3334.3,10.80034084]
[1768379222847,10.21552355,3335.0,3334.3,10.80034084]
[1768379223043,0.28070544,3334.9,3334.3,10.80034084]
[1768379223248,0.28070544,3334.8,3334.3,10.80034084]
[1768379223559,0.555,3334.8,3334.3,10.80034084]
[1768379224530,0.28085189,3334.7,3334.3,10.80034084]
[1768379224829,0.555,3334.8,3334.3,12.22159688]
[1768379225030,0.28085195,3334.7,3334.3,12.22159688]
[1768379225329,0.555,3334.8,3334.3,12.22159688]
[1768379225529,0.28086419,3334.7,3334.3,12.22159688]
[1768379225751,0.555,3334.8,3334.3,12.22159688]
[1768379225952,0.28086432,3334.7,3334.3,12.22159688]
[1768379226153,1.11,3334.8,3334.3,12.22159688]
[1768379226357,0.28086537,3334.7,3334.3,12.22159688]
[1768379226527,9.00880065,3334.8,3334.3,4.42037552]
[1768379226733,1.11,3334.8,3334.3,10.94573802]
[1768379228477,1.665,3334.8,3334.3,10.94573802]
[1768379231135,2.22,3334.8,3334.3,10.94573802]
[1768379231563,2.22,3334.8,3334.6,0.001]
[1768379234382,2.775,3334.8,3334.6,0.001]
[1768379237071,3.33,3334.8,3334.6,0.001]
[1768379238474,0.28095513,3334.7,3334.6,0.001]
[1768379238677,3.33,3334.8,3334.6,0.001]
[1768379239387,3.885,3334.8,3334.6,0.001]
[1768379241887,4.44,3334.8,3334.6,0.001]
[1768379244388,4.995,3334.8,3334.6,0.001]
[1768379246610,5.55,3334.8,3334.6,0.001]
[1768379249519,6.105,3334.8,3334.6,0.001]
[1768379250615,0.28095461,3334.7,3334.6,0.001]
[1768379252028,6.105,3334.8,3334.6,0.001]
[1768379254621,6.66,3334.8,3334.6,0.001]
[1768379257126,7.215,3334.8,3334.6,0.001]
[1768379259412,7.77,3334.8,3334.6,0.001]
[1768379260624,7.77,3334.8,3334.6,7.67087345]
[1768379260809,4.77256958,3334.8,3334.6,7.67087345]
[1768379261893,5.32756958,3334.8,3334.6,7.67087345]
[1768379264036,0.28095308,3334.7,3334.6,7.67087345]
[1768379264334,5.88256958,3334.8,3334.6,7.67087345]
[1768379266744,6.43756958,3334.8,3334.6,7.67087345]
[1768379267433,6.43756958,3334.8,3334.6,0.001]
[1768379268641,3.44012499,3334.8,3334.6,0.001]
[1768379269146,3.99512499,3334.8,3334.6,0.001]
[1768379271268,5.11633749,3334.8,3334.6,0.001]
[1768379271468,4.55012499,3334.8,3334.6,0.001]
[1768379273970,5.10512499,3334.8,3334.6,0.001]
[1768379276490,5.66012499,3334.8,3334.6,0.001]
[1768379279376,6.21512499,3334.8,3334.6,0.001]
[1768379281860,6.77012499,3334.8,3334.6,0.001]
[1768379284002,7.79122616,3334.7,3334.0,0.001]
[1768379284164,0.28093332,3334.6,3334.0,0.001]
[1768379284364,0.28093332,3334.6,3334.0,3.00038838]
[1768379284664,0.28093332,3334.6,3334.0,10.67026183]
[1768379285087,0.28093332,3334.6,3334.2,7.10929782]
[1768379285321,7.32512499,3334.8,3334.3,7.10929782]
[1768379286294,7.32512499,3334.8,3334.3,10.10841446]
[1768379286657,7.88012499,3334.8,3334.3,10.10841446]
[1768379287475,7.88012499,3334.8,3334.3,7.10929782]
[1768379288396,7.88012499,3334.8,3334.6,0.001]
[1768379289193,8.43512499,3334.8,3334.6,0.001]
[1768379291709,8.99012499,3334.8,3334.6,0.001]
[1768379292403,0.13393273,3334.8,3334.6,0.001]
[1768379293970,3.13267422,3334.8,3334.6,0.001]
[1768379294170,11.33292423,3334.8,3334.6,0.001]
[1768379294565,7.64525001,3334.7,3334.6,0.001]
[1768379294999,7.64525001,3334.7,3334.0,0.001]
[1768379295373,7.64525001,3334.5,3334.0,0.001]
[1768379296670,8.20025001,3334.5,3334.0,0.001]
[1768379296866,7.64525001,3334.3,3334.0,0.001]
[1768379297367,2.99931015,3334.1,3334.0,0.001]
[1768379297571,3.27987102,3334.1,3334.0,0.001]
[1768379297810,3.27987102,3334.1,3333.7,0.001]
[1768379297985,2.99931015,3334.1,3333.7,0.001]
[1768379299203,3.55431015,3334.1,3333.7,0.001]
[1768379299403,11.17673482,3334.1,3333.7,0.001]
[1768379299911,7.62242467,3334.0,3333.7,0.001]
[1768379300811,3.55431015,3334.1,3333.7,0.001]
[1768379302083,4.10931015,3334.1,3333.7,0.001]
[1768379304919,4.66431015,3334.1,3333.7,0.001]
[1768379305388,12.28673482,3334.1,3333.7,0.001]
[1768379307414,15.28604497,3334.1,3333.7,0.001]
[1768379307582,15.84104497,3334.1,3333.7,0.001]
[1768379309310,12.84173482,3334.1,3333.7,0.001]
[1768379309895,7.62242467,3334.0,3333.7,0.001]
[1768379310318,10.62184703,3334.0,3333.7,0.001]
[1768379310614,2.775,3334.1,3333.7,0.001]
[1768379310615,5.77434602,3334.1,3333.7,0.001]
[1768379311625,7.62242467,3334.0,3333.7,0.001]
[1768379311917,5.77434602,3334.1,3333.7,0.001]
[1768379312505,6.32934602,3334.1,3333.7,0.001]
[1768379312705,6.32934602,3334.1,3334.0,0.001]
[1768379313714,3.33,3334.1,3334.0,0.001]
[1768379314620,6.32931015,3334.1,3334.0,0.001]
[1768379314803,3.885,3334.1,3334.0,0.001]
[1768379316016,6.88431015,3334.1,3334.0,0.001]
[1768379316184,14.73175935,3334.1,3334.0,0.001]
[1768379317417,15.28675935,3334.1,3334.0,0.001]
[1768379320104,15.84175935,3334.1,3334.0,0.001]
[1768379320304,16.12217831,3334.1,3334.0,0.001]
[1768379322698,16.67717831,3334.1,3334.0,0.001]
[1768379322898,8.82972911,3334.1,3334.0,0.001]
[1768379323620,5.83041896,3334.1,3334.0,0.001]
[1768379324393,3.55596859,3334.5,3334.0,0.001]
[1768379325127,4.11096859,3334.5,3334.0,0.001]
[1768379326331,7.10993718,3334.5,3334.0,0.001]
[1768379326933,7.8474492,3334.4,3334.0,0.001]
[1768379327734,8.4024492,3334.4,3334.0,0.001]
[1768379330440,2.99913025,3334.3,3334.0,0.001]
[1768379333040,3.55413025,3334.3,3334.0,0.001]
[1768379336046,4.10913025,3334.3,3334.0,0.001]
[1768379336347,0.28074336,3334.2,3334.0,0.001]